bitfinex-derivatives/quotes_ETHF0:USTF0_20250327
["timestamp","ask_amount","ask_price","bid_price","bid_amount"]
[1743116222764,3.7926,2010.6,2010.5,0.00745675]
[1743116228173,3.7926,2010.6,2010.5,2.35810675]
[1743116228967,3.1274,2010.6,2010.5,2.35810675]
[1743116229172,2.4122,2010.6,2010.5,2.85934538]
[1743116229674,2.4122,2010.6,2010.5,2.35810675]
[1743116234581,2.4122,2010.6,2010.5,2.85946399]
[1743116235284,2.4122,2010.6,2010.5,2.85951702]
[1743116235781,2.4122,2010.6,2010.5,3.5455124]
[1743116235992,2.4122,2010.6,2010.5,2.5504624]
[1743116236277,2.4122,2010.6,2010.5,0.00745675]
[1743116236876,2.4122,2010.6,2010.5,2.40520675]
[1743116241477,2.4122,2010.6,2010.5,1.41015675]
[1743116241684,2.4122,2010.6,2010.5,2.40520675]
[1743116243188,2.4122,2010.6,2010.5,2.90713562]
[1743116244193,2.4122,2010.6,2010.5,2.90722585]
[1743116245786,2.4122,2010.6,2010.5,2.90733889]
[1743116246591,2.4122,2010.6,2010.5,1.91228889]
[1743116246791,2.4122,2010.6,2010.5,2.90733889]
[1743116249485,2.4122,2010.6,2010.5,1.91228889]
[1743116249990,2.4122,2010.6,2010.5,1.91256007]
[1743116250192,2.4122,2010.6,2010.5,2.90761007]
[1743116251898,2.4122,2010.6,2010.5,2.90761021]
[1743116254299,2.4122,2010.6,2010.5,2.90762808]
[1743116255990,1.4172,2010.6,2010.5,2.90762571]
[1743116256199,4.15294,2010.8,2010.7,0.99495]
[1743116256497,0.99494,2010.8,2010.7,1.49736896]
[1743116256896,0.99494,2010.8,2010.7,2.21196896]
[1743116257101,0.99494,2010.8,2010.7,1.21701896]
[1743116257699,2.43394,2010.8,2010.7,2.52471896]
[1743116258399,2.43394,2010.8,2010.7,3.51966896]
[1743116260000,2.43394,2010.8,2010.7,3.51941871]
[1743116262098,2.43394,2010.8,2010.7,3.51929625]
[1743116266012,3.12174,2010.8,2010.7,3.51929625]
[1743116266208,3.12174,2010.8,2010.7,3.51915537]
[1743116266705,3.12174,2010.8,2010.7,3.01725]
[1743116266909,3.12174,2010.8,2010.7,3.51915782]
[1743116267704,3.12174,2010.8,2010.7,2.0223]
[1743116267905,3.12174,2010.8,2010.7,3.01725]
[1743116268608,3.12174,2010.8,2010.7,2.0223]
[1743116268903,0.99495,2010.7,2010.6,0.7046]
[1743116269108,0.995,2010.6,2010.5,2.40720675]
[1743116269305,4.9109,2010.6,2010.5,2.90914318]
[1743116269501,6.3509,2010.6,2010.5,2.90914318]
[1743116269804,6.3509,2010.6,2010.5,1.91409318]
[1743116270103,6.3509,2010.6,2010.5,1.41215675]
[1743116270306,6.3509,2010.6,2010.5,2.40720675]
[1743116271104,6.3509,2010.6,2010.5,2.9091531]
[1743116271306,6.3509,2010.6,2010.5,2.40720675]
[1743116272812,6.3509,2010.6,2010.5,2.90915447]
[1743116273318,6.3509,2010.6,2010.5,2.40720675]
[1743116273806,6.3509,2010.6,2010.5,2.90916214]
[1743116274106,6.3509,2010.6,2010.5,2.90915875]
[1743116275122,5.6428,2010.6,2010.5,2.90915875]
[1743116276113,2.435,2010.6,2010.5,2.90915875]
[1743116276301,2.435,2010.6,2010.5,2.9091418]
[1743116282910,2.435,2010.6,2010.5,1.9140918]
[1743116283614,2.435,2010.6,2010.5,1.91420801]
[1743116283810,2.435,2010.6,2010.5,0.50950801]
[1743116284211,2.435,2010.6,2010.5,1.92280801]
[1743116284714,2.435,2010.6,2010.5,2.91785801]
[1743116285712,2.435,2010.6,2010.5,3.61368152]
[1743116289723,2.435,2010.6,2010.5,3.61369536]
[1743116291619,2.435,2010.6,2010.5,3.11160675]
[1743116291921,2.435,2010.6,2010.5,3.61373539]
[1743116293723,2.435,2010.6,2010.5,3.61379315]
[1743116294928,2.435,2010.6,2010.5,2.61874315]
[1743116295619,2.435,2010.6,2010.5,2.61882285]
[1743116295819,2.435,2010.6,2010.5,1.92302285]
[1743116297723,2.435,2010.6,2010.5,1.92314925]
[1743116301729,2.435,2010.6,2010.5,1.92324067]
[1743116303424,2.435,2010.6,2010.5,0.50994067]
[1743116303627,2.435,2010.6,2010.5,1.82794067]
[1743116305824,2.435,2010.6,2010.5,1.82794329]
[1743116306528,2.435,2010.6,2010.5,0.50994329]
[1743116306723,3.1539,2010.6,2010.5,6.75e-06]
[1743116306930,3.1539,2010.6,2009.5,4.6287]
[1743116306931,4.97564,2010.4,2009.5,4.6287]
[1743116307230,0.99545,2009.7,2009.6,2.91038999]
[1743116307632,2.36915,2009.7,2009.6,2.91038999]
[1743116309135,2.36915,2009.7,2009.6,2.4164]
[1743116324638,2.36915,2009.7,2009.6,1.4209]
[1743116325752,2.36915,2009.7,2009.5,0.6854]
[1743116325753,0.9955,2009.6,2009.5,0.6854]
[1743116325955,2.3548,2009.6,2009.5,2.0804]
[1743116326940,0.99555,2009.5,2009.4,0.00745675]
[1743116327140,9.47235,2009.5,2009.4,0.00745675]
[1743116335251,9.47235,2009.5,2009.4,6.75e-06]
[1743116335444,12.05362127,2009.5,2009.4,6.75e-06]
[1743116336248,12.0536172,2009.5,2009.4,6.75e-06]
[1743116337849,12.05361691,2009.5,2009.4,6.75e-06]
[1743116338445,12.05361679,2009.5,2009.4,6.75e-06]
[1743116338851,18.00561679,2009.5,2009.4,6.75e-06]
[1743116339745,18.00561675,2009.5,2009.4,6.75e-06]
[1743116342656,15.50561675,2009.5,2009.4,6.75e-06]
[1743116344162,15.50561702,2009.5,2009.4,6.75e-06]
[1743116346259,18.00561702,2009.5,2009.4,6.75e-06]
[1743116347262,18.00560727,2009.5,2009.4,6.75e-06]
[1743116349761,15.50560727,2009.5,2009.4,6.75e-06]
[1743116350568,15.50560693,2009.5,2009.4,6.75e-06]
[1743116351855,16.20970693,2009.5,2009.4,6.75e-06]
[1743116352059,16.20970673,2009.5,2009.4,6.75e-06]
[1743116353770,16.20970646,2009.5,2009.4,6.75e-06]
[1743116355159,15.50560646,2009.5,2009.4,6.75e-06]
[1743116355565,15.50560646,2009.5,2009.4,2.01760675]
[1743116357169,16.38766625,2009.5,2009.4,2.01760675]
[1743116360078,16.38766561,2009.5,2009.4,2.01760675]
[1743116363277,16.38766543,2009.5,2009.4,2.01760675]
[1743116364872,16.38766623,2009.5,2009.4,2.01760675]
[1743116365577,16.38766623,2009.5,2009.4,1.12770675]
[1743116366378,16.38766582,2009.5,2009.4,1.12770675]
[1743116368774,16.38766582,2009.5,2009.4,0.87100676]
[1743116369279,0.99565,2009.3,2009.2,6.75e-06]
[1743116369579,0.99597,2008.7,2008.6,0.99596]
[1743116369778,0.99597,2008.7,2008.6,1.4900895]
[1743116371478,0.99594,2008.8,2008.7,0.99592]
[1743116371684,0.99594,2008.8,2008.7,1.48993382]
[1743116373284,0.99594,2008.8,2008.7,2.83013382]
[1743116374776,0.99594,2008.8,2008.7,1.83421382]
[1743116374979,0.99594,2008.8,2008.7,2.83015382]
[1743116375380,2.36194,2008.8,2008.7,2.82992105]
[1743116379482,2.36194,2008.8,2008.7,2.82980782]
[1743116379682,2.36194,2008.8,2008.7,2.82980463]
[1743116380695,2.36194,2008.8,2008.7,2.33614]
[1743116382093,2.36194,2008.8,2008.7,2.82976358]
[1743116382491,2.36194,2008.8,2008.7,2.33614]
[1743116382695,2.36194,2008.8,2008.7,2.82974357]
[1743116383492,2.36194,2008.8,2008.7,2.82973175]
[1743116391607,2.36194,2008.8,2008.7,2.82986472]
[1743116392009,1.366,2008.8,2008.7,2.82986472]
[1743116392505,2.36189,2008.8,2008.7,2.82986472]
[1743116393513,1.366,2008.8,2008.7,2.82986472]
[1743116393814,1.366,2008.8,2008.7,2.82992958]
[1743116396517,2.36189,2008.8,2008.7,2.82992958]
[1743116397516,1.366,2008.8,2008.7,2.82992958]
[1743116397719,1.366,2008.8,2008.7,2.83024333]
[1743116398217,2.36189,2008.8,2008.7,2.83024333]
[1743116398515,1.366,2008.8,2008.7,2.83024333]
[1743116399012,2.36189,2008.8,2008.7,2.83024333]
[1743116399211,3.08359,2008.8,2008.7,2.83024333]
[1743116399612,2.0877,2008.8,2008.7,1.49004333]
[1743116400719,3.08359,2008.8,2008.7,1.49004333]
[1743116400919,3.08359,2008.8,2008.7,2.79994333]
[1743116401218,2.0877,2008.8,2008.7,2.80011912]
[1743116401618,1.366,2008.8,2008.7,2.80011912]
[1743116402926,3.76789,2008.8,2008.7,1.49021912]
[1743116403621,3.76789,2008.8,2008.7,0.49427912]
[1743116403814,3.76789,2008.8,2008.7,1.49021912]
[1743116404120,3.76789,2008.8,2008.7,0.49427912]
[1743116404324,3.76789,2008.8,2008.7,1.49021912]
[1743116404514,3.76789,2008.8,2008.7,0.49427912]
[1743116405020,0.99594,2008.7,2008.6,2.0194]
[1743116405224,2.34404,2008.7,2008.6,3.50960863]
[1743116405616,2.34404,2008.7,2008.6,0.49421863]
[1743116405810,2.34404,2008.7,2008.6,1.49020863]
[1743116406815,2.34404,2008.7,2008.6,0.49421863]
[1743116407114,8.70984,2008.7,2008.6,0.49421863]
[1743116407422,8.70984,2008.7,2008.6,0.49402656]
[1743116407812,0.99604,2008.5,2008.4,1.00350675]
[1743116408116,0.99604,2008.5,2008.4,1.49755087]
[1743116408526,2.98444,2008.5,2008.4,1.49755087]
[1743116408818,2.98444,2008.5,2008.4,1.49751199]
[1743116409024,2.98444,2008.5,2008.4,0.50142199]
[1743116410824,2.98444,2008.5,2008.4,0.00745675]
[1743116411016,2.98444,2008.5,2008.4,0.50120541]
[1743116412723,2.98444,2008.5,2008.4,0.00745675]
[1743116413112,2.98444,2008.5,2008.4,0.50107447]
[1743116413316,2.98444,2008.5,2008.4,0.00745675]
[1743116414727,2.98444,2008.5,2008.4,1.00354675]
[1743116414927,2.98444,2008.5,2008.4,0.00745675]
[1743116417723,1.3357,2008.5,2008.4,1.00354675]
[1743116417925,3.2078,2008.7,2008.6,0.99599]
[1743116418320,3.2078,2008.7,2008.6,3.13519]
[1743116418528,5.57875,2008.7,2008.6,3.13519]
[1743116419321,5.57875,2008.7,2008.6,3.62851119]
[1743116420730,2.37095,2008.7,2008.6,3.62851119]
[1743116421335,2.37095,2008.7,2008.6,3.13519]
[1743116424038,2.37094,2008.7,2008.6,3.13519]
[1743116424331,2.37094,2008.7,2008.6,3.62859825]
[1743116426935,2.37094,2008.7,2008.6,3.62861229]
[1743116427537,1.375,2008.7,2008.6,3.62861229]
[1743116428836,2.37094,2008.7,2008.6,3.62860147]
[1743116431844,1.375,2008.7,2008.6,3.62860147]
[1743116432438,2.37094,2008.7,2008.6,3.62860147]
[1743116433037,2.37094,2008.7,2008.6,3.62867501]
[1743116433346,1.375,2008.7,2008.6,3.62867501]
[1743116434035,2.37094,2008.7,2008.6,3.62867501]
[1743116434534,1.375,2008.7,2008.6,3.62867501]
[1743116435138,3.2078,2008.8,2008.7,0.99594]
[1743116435440,4.5766,2008.8,2008.7,2.86342501]
[1743116436440,5.57249,2008.8,2008.7,0.99594]
[1743116436634,6.97279,2008.8,2008.7,0.99594]
[1743116438042,5.9769,2008.8,2008.7,0.99594]
[1743116438247,6.97279,2008.8,2008.7,1.48928105]
[1743116438642,6.97279,2008.8,2008.7,0.99594]
[1743116439335,6.97279,2008.8,2008.7,1.48929923]
[1743116440039,6.97279,2008.8,2008.7,0.99594]
[1743116440551,6.97279,2008.8,2008.7,1.48931899]
[1743116441132,6.97279,2008.8,2008.7,0.99594]
[1743116443242,3.76499,2008.8,2008.7,1.48943962]
[1743116443444,6.97279,2008.8,2008.7,1.48943962]
[1743116443742,6.97279,2008.8,2008.7,0.99594]
[1743116444652,6.97279,2008.8,2008.7,1.48950777]
[1743116448449,3.76499,2008.8,2008.7,1.48950777]
[1743116448952,3.76499,2008.8,2008.7,1.489986]
[1743116450244,0.99604,2008.5,2008.4,1.00354675]
[1743116450445,0.99604,2008.5,2008.4,1.49754497]
[1743116450838,3.72184,2008.5,2008.4,1.49754497]
[1743116451247,3.72184,2008.5,2008.4,1.00354675]
[1743116452343,3.72184,2008.5,2008.4,0.00745675]
[1743116452849,3.72184,2008.5,2008.4,1.00354675]
[1743116453542,2.7258,2008.5,2008.4,1.00354675]
[1743116453746,3.72184,2008.5,2008.4,1.00354675]
[1743116455546,3.72184,2008.5,2008.4,0.00745675]
[1743116459463,6.92964,2008.5,2008.4,0.00745675]
[1743116460666,7.33307957,2008.5,2008.4,0.00745675]
[1743116461669,0.99629,2008.0,2007.9,2.40391]
[1743116461869,0.99629,2008.0,2007.9,2.8968223]
[1743116462266,0.99634,2007.9,2007.8,1.66165]
[1743116462466,3.89524,2008.0,2007.7,3.0574]
[1743116462666,2.40089,2007.8,2007.7,3.0574]
[1743116462966,2.40089,2007.8,2007.7,3.55015817]
[1743116464162,2.40089,2007.8,2007.7,3.54996619]
[1743116464472,2.40089,2007.8,2007.7,3.0574]
[1743116468468,2.40089,2007.8,2007.7,2.404]
[1743116472569,2.40089,2007.8,2007.7,1.4076]
[1743116472776,0.99644,2007.7,2007.6,4.5985]
[1743116472972,2.38574,2007.7,2007.6,5.09053145]
[1743116473277,2.38574,2007.7,2007.6,6.08698145]
[1743116474177,2.38574,2007.7,2007.6,6.08701709]
[1743116474368,2.38574,2007.7,2007.6,2.87921709]
[1743116476276,2.38574,2007.7,2007.6,2.87931167]
[1743116478174,2.38574,2007.7,2007.6,2.87959713]
[1743116479076,2.38574,2007.7,2007.6,1.48903308]
[1743116479378,2.38574,2007.7,2007.6,0.99645]
[1743116480069,2.38574,2007.7,2007.6,1.48926582]
[1743116481074,0.99649,2007.6,2007.5,0.6706]
[1743116481381,2.31259,2007.6,2007.5,1.66714]
[1743116483477,0.99648,2007.7,2007.6,0.99649]
[1743116483686,2.34308,2007.7,2007.6,0.99649]
[1743116485581,0.99659,2007.5,2007.4,0.99656]
[1743116485779,0.99669,2007.3,2007.2,0.99666]
[1743116485974,0.99669,2007.3,2007.2,1.48993931]
[1743116486179,0.99669,2007.3,2007.2,0.49327931]
[1743116486485,0.99669,2007.2,2007.1,0.7215]
[1743116486685,0.99669,2007.2,2007.1,0.4932067]
[1743116486887,1.65369,2007.2,2007.1,0.4932067]
[1743116487083,3.02689,2007.2,2007.1,0.4932067]
[1743116487277,0.99674,2007.1,2007.0,3.2078]
[1743116487479,3.07264,2007.1,2007.0,3.2078]
[1743116488178,3.07264,2007.1,2006.6,2.49244]
[1743116488179,0.99694,2006.7,2006.6,3.2078]
[1743116488378,0.99694,2006.7,2006.4,0.99708]
[1743116488379,2.49249,2006.6,2006.4,0.99708]
[1743116488584,2.38651,2006.5,2006.4,0.99708]
[1743116488781,2.38651,2006.5,2006.4,0.4927287]
[1743116488978,0.99708,2006.4,2006.3,2.3832]
[1743116489181,2.38648,2006.4,2006.3,2.87593957]
[1743116489388,2.38648,2006.4,2006.3,2.3832]
[1743116490388,1.3894,2006.4,2006.3,2.3832]
[1743116490589,0.99701,2006.6,2006.5,0.99703]
[1743116490783,2.40451,2006.6,2006.5,0.99703]
[1743116493885,0.99703,2006.5,2006.4,1.3373]
[1743116494087,3.05283,2006.5,2006.4,2.33435]
[1743116494286,2.34153,2006.5,2006.4,2.33435]
[1743116494792,1.3445,2006.5,2006.4,2.33435]
[1743116495293,2.34153,2006.5,2006.4,2.33435]
[1743116495493,1.3445,2006.5,2006.4,2.33435]
[1743116495790,2.34153,2006.5,2006.4,2.33435]
[1743116495994,1.3445,2006.5,2006.4,2.33435]
[1743116497494,2.34153,2006.5,2006.4,2.33435]
[1743116498191,1.3445,2006.5,2006.4,2.33435]
[1743116498387,2.34153,2006.5,2006.4,2.33435]
[1743116498586,1.3445,2006.5,2006.4,2.33435]
[1743116498781,2.34153,2006.5,2006.4,2.33435]
[1743116499095,1.3445,2006.5,2006.4,2.33435]
[1743116500896,2.34153,2006.5,2006.4,2.33435]
[1743116501197,2.34153,2006.5,2006.4,0.99705]
[1743116505191,1.3445,2006.5,2006.4,0.99705]
[1743116506107,4.20475,2006.7,2006.6,0.99698]
[1743116506399,2.37253,2006.8,2006.7,0.99694]
[1743116506601,2.49236,2006.7,2006.4,3.2078]
[1743116506900,0.99703,2006.6,2006.5,0.99698]
[1743116507097,3.07463,2006.6,2006.5,0.99698]
[1743116509506,0.99703,2006.5,2006.4,1.3755]
[1743116509704,2.30423,2006.5,2006.4,2.37258]
[1743116509903,2.30423,2006.5,2006.4,1.3755]
[1743116510104,2.30423,2006.5,2006.4,2.37258]
[1743116511503,2.30423,2006.5,2006.4,1.3755]
[1743116511806,0.99713,2006.3,2006.2,0.6561]
[1743116512005,0.99713,2006.3,2006.2,1.14794014]
[1743116512206,0.99713,2006.3,2006.2,3.56872014]
[1743116512406,3.06983,2006.3,2006.2,3.56872014]
[1743116514513,3.06983,2006.3,2006.2,3.56968566]
[1743116515210,3.06983,2006.3,2006.2,5.66e-06]
[1743116515400,3.06983,2006.3,2005.3,4.20543]
[1743116515401,0.99758,2005.4,2005.3,4.20543]
[1743116515602,5.70111,2006.0,2005.7,0.99739]
[1743116515806,1.3799,2005.7,2005.6,0.99748]
[1743116516004,1.3799,2005.7,2005.6,1.70678]
[1743116516207,2.37733,2005.7,2005.6,1.70678]
[1743116516513,1.3799,2005.7,2005.6,1.70678]
[1743116517706,2.37733,2005.7,2005.6,1.70678]
[1743116518002,1.3799,2005.7,2005.6,1.70678]
[1743116520205,2.37733,2005.7,2005.6,1.70678]
[1743116520401,1.3799,2005.7,2005.6,1.70678]
[1743116522015,2.37733,2005.7,2005.6,1.70678]
[1743116522410,2.37733,2005.7,2005.6,0.99748]
[1743116524114,1.3799,2005.7,2005.6,0.99748]
[1743116528625,2.37733,2005.7,2005.6,0.99748]
[1743116529806,1.3799,2005.7,2005.6,0.99748]
[1743116531014,1.3799,2005.7,2005.6,1.66948]
[1743116532021,2.37733,2005.7,2005.6,1.66948]
[1743116532519,1.3799,2005.7,2005.6,1.66948]
[1743116533719,2.37733,2005.7,2005.6,0.99748]
[1743116533919,3.06073,2005.7,2005.6,0.99748]
[1743116535119,2.0633,2005.7,2005.6,0.99748]
[1743116535417,3.06073,2005.7,2005.6,0.99748]
[1743116536219,2.0633,2005.7,2005.6,0.99748]
[1743116538412,1.3799,2005.7,2005.6,1.68258]
[1743116540319,0.6836,2006.0,2005.9,0.99733]
[1743116540517,1.3437,2006.0,2005.9,0.99733]
[1743116541019,2.34098,2006.0,2005.9,0.99733]
[1743116541819,3.67298,2006.0,2005.9,0.99733]
[1743116545727,0.99737,2005.9,2005.8,0.99733]
[1743116546031,2.40487,2005.9,2005.8,0.99733]
[1743116546718,0.99748,2005.7,2005.6,0.99741]
[1743116546917,2.40492,2005.8,2005.7,0.99743]
[1743116547128,0.99742,2005.8,2005.7,0.99743]
[1743116555629,0.99748,2005.7,2005.6,0.99746]
[1743116555828,2.34268,2005.7,2005.6,0.99746]
[1743116556231,2.34263,2005.7,2005.6,0.99746]
[1743116557433,2.34263,2005.7,2005.3,1.3344]
[1743116557434,2.49371,2005.6,2005.3,1.3344]
[1743116557729,0.99758,2005.4,2005.3,0.9976]
[1743116558139,0.99763,2005.3,2005.2,2.43794]
[1743116558336,2.39363,2005.3,2005.2,2.43794]
[1743116559235,2.39363,2005.3,2005.2,0.99764]
[1743116561138,2.39363,2005.3,2005.2,2.35244]
[1743116561440,2.39363,2005.3,2005.2,0.99764]
[1743116564943,0.99783,2004.9,2004.8,4.90555]
[1743116565131,0.99783,2004.9,2004.8,5.57665]
[1743116565841,2.41033,2004.9,2004.8,5.57665]
[1743116567141,1.4125,2004.9,2004.8,5.57665]
[1743116567942,2.41033,2004.9,2004.8,4.20565]
[1743116568238,0.00747645,2005.1,2005.0,0.99778]
[1743116568939,0.00747645,2005.1,2005.0,1.65628]
[1743116569844,1.42437645,2005.1,2005.0,1.65628]
[1743116571038,2.42210645,2005.1,2005.0,1.65628]
[1743116571345,1.42437645,2005.1,2005.0,1.65628]
[1743116572543,0.00747645,2005.1,2005.0,1.65628]
[1743116574235,1.3374,2005.5,2005.2,2.4941]
[1743116574438,1.3374,2005.5,2005.4,0.99758]
[1743116575245,1.3374,2005.5,2005.4,2.42188]
[1743116584555,0.00747645,2005.7,2005.6,0.99748]
[1743116584851,1.35487645,2005.7,2005.6,0.99748]
[1743116585348,1.35487645,2005.7,2005.6,1.67408]
[1743116585946,3.9266,2006.0,2005.9,0.99733]
[1743116586144,4.20508,2006.0,2005.9,0.99733]
[1743116586455,6.97018,2006.0,2005.9,0.99733]
[1743116587854,5.9729,2006.0,2005.9,0.99733]
[1743116588055,6.97018,2006.0,2005.9,0.99733]
[1743116589950,5.9729,2006.0,2005.9,0.99733]
[1743116590253,6.97018,2006.0,2005.9,0.99733]
[1743116591851,1.4084,2006.0,2005.9,0.99733]
[1743116592041,1.4084,2006.0,2005.9,1.69033]
[1743116592244,1.4084,2006.0,2005.9,3.11063]
[1743116594959,1.4084,2006.0,2005.9,2.41763]
[1743116596054,1.4084,2006.0,2005.9,0.99733]
[1743116596255,1.4084,2006.0,2005.9,2.30833]
[1743116600056,0.99733,2005.9,2005.8,0.99736]
[1743116600361,2.39213,2005.9,2005.8,0.99736]
[1743116601158,2.49347,2005.8,2005.3,2.49398]
[1743116601461,0.9975,2005.7,2005.6,0.99745]
[1743116601659,2.3449,2005.7,2005.6,0.99745]
[1743116601857,0.99753,2005.6,2005.5,0.9975]
[1743116602058,3.05813,2005.6,2005.5,0.9975]
[1743116602655,2.34493,2005.6,2005.5,0.9975]
[1743116602860,2.34488,2005.6,2005.5,0.9975]
[1743116603670,1.3474,2005.6,2005.5,0.9975]
[1743116603864,2.34488,2005.6,2005.5,0.9975]
[1743116605161,2.34488,2005.6,2005.3,3.91958]
[1743116605162,0.99757,2005.5,2005.4,0.99755]
[1743116605468,3.77057,2005.5,2005.4,0.99755]
[1743116605870,2.773,2005.5,2005.4,0.99755]
[1743116606370,3.77053,2005.5,2005.4,0.99755]
[1743116611175,2.773,2005.5,2005.4,0.99755]
[1743116611561,1.4262,2005.5,2005.4,0.99755]
[1743116612072,1.4262,2005.5,2005.4,2.37055]
[1743116623393,1.4262,2005.5,2005.4,3.04765]
[1743116626289,0.99763,2005.3,2005.2,1.00514645]
[1743116626484,4.20543,2005.3,2005.2,1.00514645]
[1743116626794,4.20543,2005.3,2005.2,1.00515645]
[1743116627191,5.58643,2005.3,2005.2,1.00515645]
[1743116627886,5.58643,2005.3,2005.2,0.00747645]
[1743116628297,5.58643,2005.3,2005.2,1.00515645]
[1743116628492,7.7838,2005.3,2004.8,0.7172]
[1743116628700,1.3349,2005.2,2004.8,0.99784]
[1743116628899,0.99788,2004.9,2004.8,0.99784]
[1743116629900,2.33278,2004.9,2004.8,0.99784]
[1743116630298,1.3349,2004.9,2004.8,0.99784]
[1743116631006,1.3349,2004.9,2004.8,2.35864]
[1743116631298,1.3349,2004.9,2004.8,3.05104]
[1743116632296,1.3349,2004.9,2004.8,2.35864]
[1743116633203,2.33273,2004.9,2004.8,0.99784]
[1743116633597,1.3349,2004.9,2004.8,0.99784]
[1743116634805,2.33273,2004.9,2004.8,0.99784]
[1743116635001,0.99793,2004.7,2004.6,4.21322645]
[1743116635197,3.00471,2004.8,2004.7,0.99793]
[1743116635907,3.00471,2004.8,2004.6,4.21322645]
[1743116635908,0.99793,2004.7,2004.6,4.21322645]
[1743116636202,2.32663,2004.7,2004.6,4.21322645]
[1743116638808,2.32663,2004.7,2004.6,3.21527645]
[1743116638998,2.32663,2004.7,2004.6,1.00545645]
[1743116641306,4.5247,2004.7,2004.0,3.2078]
[1743116641504,0.99806,2004.5,2004.4,0.99803]
[1743116641906,2.40276,2004.5,2004.4,0.99803]
[1743116642406,2.40274,2004.5,2004.4,0.99808]
[1743116644007,1.4047,2004.5,2004.4,0.99808]
[1743116644308,2.40273,2004.5,2004.4,1.69538]
[1743116644807,1.4047,2004.5,2004.4,1.69538]
[1743116645199,2.40273,2004.5,2004.4,1.69538]
[1743116645404,1.4047,2004.5,2004.4,1.69538]
[1743116646102,2.40273,2004.5,2004.4,1.69538]
[1743116646504,1.4047,2004.5,2004.4,1.69538]
[1743116646900,2.40273,2004.5,2004.4,1.69538]
[1743116647607,1.4047,2004.5,2004.4,1.69538]
[1743116647807,2.40273,2004.5,2004.4,1.69538]
[1743116648007,1.4047,2004.5,2004.4,1.69538]
[1743116649106,1.4047,2004.5,2004.4,3.06358]
[1743116649405,5.55694,2004.9,2004.8,0.99788]
[1743116649609,0.99798,2004.6,2004.5,1.67109]
[1743116649809,0.99808,2004.5,2004.4,0.99804]
[1743116650006,0.99819,2004.3,2004.2,0.99815]
[1743116650306,0.99812,2004.4,2004.3,0.99809]
[1743116650512,2.42942,2004.4,2004.3,0.99809]
[1743116654006,1.4313,2004.4,2004.3,0.99809]
[1743116654210,1.4313,2004.4,2004.3,2.39629]
[1743116654420,2.42938,2004.4,2004.3,2.39629]
[1743116654606,2.42938,2004.4,2004.3,0.99809]
[1743116660517,1.4313,2004.4,2004.3,0.99809]
[1743116660713,1.4313,2004.4,2004.3,2.37559]
[1743116660914,2.42938,2004.4,2004.3,2.37559]
[1743116661308,2.42938,2004.4,2004.3,0.99809]
[1743116661508,1.4313,2004.4,2004.3,0.99809]
[1743116661817,2.42938,2004.4,2004.3,2.38869]
[1743116663017,1.4313,2004.4,2004.3,2.38869]
[1743116663217,2.42938,2004.4,2004.3,0.99809]
[1743116666909,0.99823,2004.2,2004.1,0.99819]
[1743116667325,3.71583,2004.2,2004.1,0.99819]
[1743116667914,2.0534,2004.2,2004.1,2.33039]
[1743116668224,1.3388,2004.2,2004.1,3.04079]
[1743116670117,0.99807,2004.5,2004.4,0.99803]
[1743116670320,2.34217,2004.5,2004.4,0.99803]
[1743116670519,3.02677,2004.5,2004.4,0.99803]
[1743116671823,1.3441,2004.5,2004.4,0.99803]
[1743116672021,1.3441,2004.5,2004.4,1.66413]
[1743116673526,1.3441,2004.5,2004.4,4.87193]
[1743116673828,0.7108,2004.8,2004.7,0.99793]
[1743116675124,2.1166,2004.8,2004.7,0.99793]
[1743116675318,3.2078,2004.9,2004.7,0.99793]
[1743116675514,4.6136,2004.9,2004.8,2.98128]
[1743116676525,1.4058,2004.9,2004.8,2.98128]
[1743116678130,1.4058,2004.9,2004.8,0.99788]
[1743116678719,1.4058,2004.9,2004.8,1.68988]
[1743116680233,2.40363,2004.9,2004.8,1.68988]
[1743116680433,3.10823,2004.9,2004.8,0.99788]
[1743116680735,2.1104,2004.9,2004.8,0.99788]
[1743116681129,2.1104,2004.9,2004.8,2.40658]
[1743116681435,3.10823,2004.9,2004.8,2.40658]
[1743116681732,2.1104,2004.9,2004.8,2.40658]
[1743116683128,3.10823,2004.9,2004.8,2.40658]
[1743116683436,2.1104,2004.9,2004.8,0.99788]
[1743116684028,3.10823,2004.9,2004.8,0.99788]
[1743116684230,3.10827,2004.9,2004.6,0.6868]
[1743116684535,2.0802,2004.8,2004.7,0.99793]
[1743116685036,2.0802,2004.8,2004.7,2.39493]
[1743116685432,2.0802,2004.8,2004.6,1.66314]
[1743116685640,1.4012,2004.7,2004.6,0.99794]
[1743116685928,0.99802,2004.6,2004.5,0.998]
[1743116686135,1.72122,2004.6,2004.5,0.998]
[1743116686339,3.10012,2004.6,2004.5,0.998]
[1743116687230,0.99808,2004.4,2004.3,1.68759]
[1743116687530,3.04038,2004.5,2004.4,0.99808]
[1743116688340,1.3789,2004.5,2004.4,0.99808]
[1743116688637,2.37693,2004.5,2004.4,0.99808]
[1743116690438,1.3789,2004.5,2004.4,0.99808]
[1743116690635,1.3789,2004.5,2004.4,2.37228]
[1743116691530,2.37693,2004.5,2004.4,2.37228]
[1743116692537,1.3789,2004.5,2004.4,2.37228]
[1743116703031,1.3789,2004.5,2004.1,8.19886]
[1743116703032,0.99818,2004.2,2004.1,3.2078]
[1743116703245,2.49538,2004.3,2004.1,0.99818]
[1743116703544,0.99821,2004.2,2004.1,0.99818]
[1743116703741,2.38711,2004.2,2004.1,0.99818]
[1743116704442,0.99825,2004.1,2004.0,0.99823]
[1743116704646,2.0026,2004.1,2004.0,0.99823]
[1743116704938,3.00083,2004.1,2004.0,0.99823]
[1743116705241,2.0026,2004.1,2004.0,0.99823]
[1743116705445,3.00083,2004.1,2004.0,0.99823]
[1743116706846,2.0026,2004.1,2004.0,0.99823]